[Event "Late-Titled-Tuesday-Blitz-June-18-2024"]
[Site "Chess.com"]
[Date "2024.06.18"]
[Round "7"]
[White "OIAM03"]
[Black "FMalexhdez"]
[Result "0-1"]
[WhiteElo "2036"]
[BlackElo "2275"]
[TimeControl "180+1"]
[EndTime "15:18:31 PDT"]
[Termination "FMalexhdez won on time"]

1. e4 {[%clk 0:03:00.2]} 1... e5 {[%clk 0:02:59.1]} 2. Nf3 {[%clk 0:02:57.7]}
2... Nc6 {[%clk 0:02:59.2]} 3. d4 {[%clk 0:02:56.1]} 3... exd4 {[%clk
0:02:58.6]} 4. Nxd4 {[%clk 0:02:55.7]} 4... Bc5 {[%clk 0:02:54.4]} 5. Nb3 {[%clk
0:02:52.8]} 5... Bb6 {[%clk 0:02:53.7]} 6. Nc3 {[%clk 0:02:52.1]} 6... a5 {[%clk
0:02:49.7]} 7. a4 {[%clk 0:02:45.6]} 7... Nf6 {[%clk 0:02:45.5]} 8. Qe2 {[%clk
0:02:44.8]} 8... d6 {[%clk 0:02:44.4]} 9. Be3 {[%clk 0:02:42.7]} 9... Bxe3
{[%clk 0:02:42.7]} 10. Qxe3 {[%clk 0:02:36.5]} 10... O-O {[%clk 0:02:42.8]} 11.
O-O-O {[%clk 0:02:07.8]} 11... Ng4 {[%clk 0:02:36.3]} 12. Qe2 {[%clk 0:01:59]}
12... Be6 {[%clk 0:02:05.3]} 13. Nd5 {[%clk 0:01:52.4]} 13... Nb4 {[%clk
0:01:45.3]} 14. f3 {[%clk 0:01:43.6]} 14... Bxd5 {[%clk 0:01:30.5]} 15. exd5
{[%clk 0:01:36.8]} 15... Qg5+ {[%clk 0:01:28.1]} 16. Kb1 {[%clk 0:01:29.8]}
16... Rfe8 {[%clk 0:01:22.3]} 17. Qd2 {[%clk 0:00:45.9]} 17... Qxd2 {[%clk
0:01:21.4]} 18. Rxd2 {[%clk 0:00:45.5]} 18... Re1+ {[%clk 0:01:21.4]} 19. Nc1
{[%clk 0:00:45.3]} 19... Ne3 {[%clk 0:01:17.3]} 20. c3 {[%clk 0:00:33.3]} 20...
Nbxd5 {[%clk 0:00:54.7]} 21. Rd4 {[%clk 0:00:26.7]} 21... c5 {[%clk 0:00:50.7]}
22. Re4 {[%clk 0:00:23.6]} 22... Rxf1 {[%clk 0:00:48.2]} 23. Rxf1 {[%clk
0:00:17.6]} 23... Nxf1 {[%clk 0:00:48.2]} 0-1

[Event "Late-Titled-Tuesday-Blitz-June-18-2024"]
[Site "Chess.com"]
[Date "2024.06.18"]
[Round "7"]
[White "ReadySkate"]
[Black "ahkashefi2800"]
[Result "0-1"]
[WhiteElo "2769"]
[BlackElo "2641"]
[TimeControl "180+1"]
[EndTime "15:18:34 PDT"]
[Termination "ahkashefi2800 won by checkmate"]

1. d4 {[%clk 0:03:00.9]} 1... d5 {[%clk 0:02:59.2]} 2. c4 {[%clk 0:03:00.9]}
2... c6 {[%clk 0:02:59.2]} 3. Nf3 {[%clk 0:03:00.1]} 3... Nf6 {[%clk 0:02:59.5]}
4. Nc3 {[%clk 0:03:00]} 4... a6 {[%clk 0:02:57.9]} 5. e3 {[%clk 0:02:59.6]} 5...
Bg4 {[%clk 0:02:57.3]} 6. h3 {[%clk 0:02:57.3]} 6... Bxf3 {[%clk 0:02:57.6]} 7.
Qxf3 {[%clk 0:02:58.2]} 7... e6 {[%clk 0:02:58.2]} 8. Bd3 {[%clk 0:02:57.3]}
8... Nbd7 {[%clk 0:02:56.9]} 9. O-O {[%clk 0:02:57.2]} 9... Bd6 {[%clk
0:02:54.5]} 10. b3 {[%clk 0:02:55.3]} 10... O-O {[%clk 0:02:54.1]} 11. Bb2
{[%clk 0:02:55]} 11... Qe7 {[%clk 0:02:53.9]} 12. Rfe1 {[%clk 0:02:52.9]} 12...
Rae8 {[%clk 0:02:54.1]} 13. e4 {[%clk 0:02:53]} 13... dxc4 {[%clk 0:02:54]} 14.
Bxc4 {[%clk 0:02:50.5]} 14... e5 {[%clk 0:02:54]} 15. Ne2 {[%clk 0:02:50.7]}
15... Rd8 {[%clk 0:02:44.1]} 16. Ng3 {[%clk 0:02:46.9]} 16... g6 {[%clk
0:02:30.4]} 17. Rad1 {[%clk 0:02:46]} 17... Rfe8 {[%clk 0:02:22.7]} 18. Bf1
{[%clk 0:02:40.8]} 18... Kg7 {[%clk 0:02:21.3]} 19. dxe5 {[%clk 0:02:36.9]}
19... Bxe5 {[%clk 0:02:18.4]} 20. Bc1 {[%clk 0:02:36.1]} 20... Nf8 {[%clk
0:02:02.9]} 21. Qe3 {[%clk 0:02:35]} 21... Ne6 {[%clk 0:01:35.7]} 22. Ne2 {[%clk
0:02:14.3]} 22... Qc5 {[%clk 0:01:19.4]} 23. Qxc5 {[%clk 0:01:55.8]} 23... Nxc5
{[%clk 0:01:18.5]} 24. f4 {[%clk 0:01:56.4]} 24... Bc7 {[%clk 0:00:55.5]} 25.
Ng3 {[%clk 0:01:49.4]} 25... Rxd1 {[%clk 0:00:52.4]} 26. Rxd1 {[%clk 0:01:48.1]}
26... Ncxe4 {[%clk 0:00:45.5]} 27. Nxe4 {[%clk 0:01:47]} 27... Rxe4 {[%clk
0:00:45]} 28. Bb2 {[%clk 0:01:45]} 28... Rxf4 {[%clk 0:00:31.4]} 29. Bd3 {[%clk
0:01:41.4]} 29... Bb6+ {[%clk 0:00:30.6]} 30. Kh2 {[%clk 0:01:38.6]} 30... Bd4
{[%clk 0:00:30.1]} 31. Ba3 {[%clk 0:01:33.2]} 31... Rf2 {[%clk 0:00:28.3]} 32.
Bc4 {[%clk 0:01:27.1]} 32... Be5+ {[%clk 0:00:26.9]} 33. Kg1 {[%clk 0:01:23.6]}
33... Rxa2 {[%clk 0:00:27.4]} 34. Bc5 {[%clk 0:01:23.7]} 34... Ne4 {[%clk
0:00:26.1]} 35. Be7 {[%clk 0:01:23.6]} 35... c5 {[%clk 0:00:23.4]} 36. Rd7
{[%clk 0:01:20.3]} 36... Ra1+ {[%clk 0:00:18.3]} 37. Bf1 {[%clk 0:01:18.4]}
37... Bd4+ {[%clk 0:00:17]} 38. Kh2 {[%clk 0:01:14.3]} 38... Rxf1 {[%clk
0:00:16.2]} 39. Rxb7 {[%clk 0:01:14.7]} 39... Be5+ {[%clk 0:00:16]} 40. g3
{[%clk 0:01:15.2]} 40... Bxg3+ {[%clk 0:00:16.1]} 41. Kg2 {[%clk 0:01:16.1]}
41... Rf2+ {[%clk 0:00:17]} 42. Kg1 {[%clk 0:01:16.4]} 42... Bh2+ {[%clk
0:00:17.2]} 43. Kh1 {[%clk 0:01:16.9]} 43... Ng3# {[%clk 0:00:18.1]} 0-1

[Event "Late-Titled-Tuesday-Blitz-June-18-2024"]
[Site "Chess.com"]
[Date "2024.06.18"]
[Round "7"]
[White "Mikhail_Golubev"]
[Black "ChessWarrior7197"]
[Result "0-1"]
[WhiteElo "2668"]
[BlackElo "3151"]
[TimeControl "180+1"]
[EndTime "15:18:41 PDT"]
[Termination "ChessWarrior7197 won on time"]

1. e4 {[%clk 0:03:00.9]} 1... c5 {[%clk 0:02:59.4]} 2. Nf3 {[%clk 0:03:00.5]}
2... Nc6 {[%clk 0:02:58.3]} 3. Nc3 {[%clk 0:02:59.9]} 3... g6 {[%clk 0:02:58.2]}
4. d4 {[%clk 0:02:59.8]} 4... cxd4 {[%clk 0:02:59.1]} 5. Nxd4 {[%clk 0:03:00.1]}
5... Bg7 {[%clk 0:03:00]} 6. Be3 {[%clk 0:03:00.3]} 6... d6 {[%clk 0:03:00.1]}
7. f3 {[%clk 0:02:56.3]} 7... Nf6 {[%clk 0:02:59.2]} 8. Qd2 {[%clk 0:02:56.4]}
8... O-O {[%clk 0:02:59.5]} 9. O-O-O {[%clk 0:02:55.8]} 9... d5 {[%clk
0:02:59.5]} 10. exd5 {[%clk 0:02:55.5]} 10... Nxd5 {[%clk 0:03:00.4]} 11. Nxc6
{[%clk 0:02:55.6]} 11... bxc6 {[%clk 0:03:01.3]} 12. Bd4 {[%clk 0:02:55.9]}
12... e5 {[%clk 0:03:02]} 13. Bc5 {[%clk 0:02:56]} 13... Be6 {[%clk 0:03:02.6]}
14. Ne4 {[%clk 0:02:55.7]} 14... Re8 {[%clk 0:03:02.9]} 15. h4 {[%clk
0:02:55.1]} 15... h5 {[%clk 0:03:02.7]} 16. g4 {[%clk 0:02:24.7]} 16... Nf4
{[%clk 0:03:01.4]} 17. Qc3 {[%clk 0:01:52.7]} 17... Bd5 {[%clk 0:03:01.1]} 18.
gxh5 {[%clk 0:01:41.6]} 18... Nxh5 {[%clk 0:03:02]} 19. Bc4 {[%clk 0:01:40.5]}
19... Rb8 {[%clk 0:02:53.4]} 20. Nd6 {[%clk 0:01:32.3]} 20... e4 {[%clk
0:02:50.7]} 21. Rd4 {[%clk 0:00:43.3]} 21... Re6 {[%clk 0:02:04.4]} 22. fxe4
{[%clk 0:00:30.8]} 22... Bxd4 {[%clk 0:02:03.8]} 23. Bxd4 {[%clk 0:00:17.4]}
23... Qxd6 {[%clk 0:01:54.5]} 24. exd5 {[%clk 0:00:16.6]} 24... cxd5 {[%clk
0:01:54.4]} 25. Bb3 {[%clk 0:00:10.5]} 25... Ng3 {[%clk 0:01:52]} 26. Re1 {[%clk
0:00:05.9]} 26... Ne2+ {[%clk 0:01:46.1]} 27. Rxe2 {[%clk 0:00:06.2]} 27... Rxe2
{[%clk 0:01:47]} 28. a4 {[%clk 0:00:05.7]} 28... Qb4 {[%clk 0:01:32]} 29. Qxb4
{[%clk 0:00:05.1]} 29... Rxb4 {[%clk 0:01:31.8]} 30. Bxa7 {[%clk 0:00:05.1]}
30... Rxh4 {[%clk 0:01:28.9]} 31. Kb1 {[%clk 0:00:04.6]} 31... d4 {[%clk
0:01:20.6]} 32. a5 {[%clk 0:00:04.6]} 32... Re1+ {[%clk 0:01:20.5]} 33. Ka2
{[%clk 0:00:04.5]} 33... Rhh1 {[%clk 0:01:21.4]} 34. Ka3 {[%clk 0:00:04.7]}
34... Ra1+ {[%clk 0:01:20.4]} 35. Kb4 {[%clk 0:00:04.8]} 35... Rh4 {[%clk
0:01:19.8]} 36. Bc4 {[%clk 0:00:03.4]} 36... g5 {[%clk 0:01:18.3]} 37. Bc5
{[%clk 0:00:02.7]} 37... g4 {[%clk 0:01:17.9]} 38. a6 {[%clk 0:00:02.1]} 38...
g3 {[%clk 0:01:16.2]} 39. Bd5 {[%clk 0:00:01.5]} 39... d3+ {[%clk 0:01:15.4]}
40. Kc3 {[%clk 0:00:01]} 40... dxc2 {[%clk 0:01:14.7]} 0-1

[Event "Late-Titled-Tuesday-Blitz-June-18-2024"]
[Site "Chess.com"]
[Date "2024.06.18"]
[Round "7"]
[White "Bob_2004"]
[Black "Crazy_girl99"]
[Result "0-1"]
[WhiteElo "2742"]
[BlackElo "2637"]
[TimeControl "180+1"]
[EndTime "15:18:42 PDT"]
[Termination "Crazy_girl99 won by resignation"]

1. d4 {[%clk 0:03:00.9]} 1... Nf6 {[%clk 0:02:52.8]} 2. c4 {[%clk 0:03:01.4]}
2... e6 {[%clk 0:02:53.1]} 3. Nf3 {[%clk 0:03:01.1]} 3... d5 {[%clk 0:02:52.8]}
4. e3 {[%clk 0:02:59.6]} 4... Nbd7 {[%clk 0:02:51.5]} 5. Nc3 {[%clk 0:02:59.4]}
5... Bb4 {[%clk 0:02:51.4]} 6. Bd3 {[%clk 0:02:58.7]} 6... dxc4 {[%clk
0:02:50.6]} 7. Bxc4 {[%clk 0:02:58.5]} 7... O-O {[%clk 0:02:50.7]} 8. O-O {[%clk
0:02:58.3]} 8... a6 {[%clk 0:02:49.4]} 9. a3 {[%clk 0:02:55.4]} 9... Bd6 {[%clk
0:02:49]} 10. b4 {[%clk 0:02:51.6]} 10... b5 {[%clk 0:02:47.4]} 11. Bd3 {[%clk
0:02:50]} 11... Bb7 {[%clk 0:02:48]} 12. Bb2 {[%clk 0:02:49.9]} 12... Re8 {[%clk
0:02:47.1]} 13. Qc2 {[%clk 0:02:20.7]} 13... h6 {[%clk 0:02:45.5]} 14. Ne4
{[%clk 0:02:14.5]} 14... Nxe4 {[%clk 0:02:42.1]} 15. Bxe4 {[%clk 0:02:15.4]}
15... Bxe4 {[%clk 0:02:42.1]} 16. Qxe4 {[%clk 0:02:16.2]} 16... Nb6 {[%clk
0:02:41.9]} 17. Rfc1 {[%clk 0:01:50.5]} 17... Nc4 {[%clk 0:02:40.4]} 18. Rc2
{[%clk 0:01:50.4]} 18... Qf6 {[%clk 0:02:38.1]} 19. Nd2 {[%clk 0:01:44.3]} 19...
Nxb2 {[%clk 0:02:19.2]} 20. Rxb2 {[%clk 0:01:44.1]} 20... a5 {[%clk 0:02:19.5]}
21. Rc1 {[%clk 0:01:17.8]} 21... axb4 {[%clk 0:02:18.3]} 22. axb4 {[%clk
0:01:18.7]} 22... e5 {[%clk 0:02:18.3]} 23. d5 {[%clk 0:01:09.2]} 23... Ra4
{[%clk 0:02:12.5]} 24. g3 {[%clk 0:01:02.6]} 24... Qg5 {[%clk 0:02:09.1]} 25.
Qd3 {[%clk 0:00:57.9]} 25... e4 {[%clk 0:01:55.1]} 26. Qxb5 {[%clk 0:00:53.9]}
26... Raa8 {[%clk 0:01:51.2]} 27. Qe2 {[%clk 0:00:43.5]} 27... Qxd5 {[%clk
0:01:47.1]} 28. Nc4 {[%clk 0:00:33.9]} 28... Bf8 {[%clk 0:01:43]} 29. Na5 {[%clk
0:00:14.5]} 29... c5 {[%clk 0:01:42.7]} 30. Rd2 {[%clk 0:00:11.3]} 30... Qe6
{[%clk 0:01:33.8]} 31. Nc4 {[%clk 0:00:09.6]} 31... cxb4 {[%clk 0:01:33.7]} 32.
Rb1 {[%clk 0:00:08.1]} 32... Rec8 {[%clk 0:01:30.4]} 33. Rd4 {[%clk 0:00:04.9]}
33... Rab8 {[%clk 0:01:27.6]} 34. Nd2 {[%clk 0:00:04.8]} 34... b3 {[%clk
0:01:25.7]} 35. Qd1 {[%clk 0:00:05.1]} 35... b2 {[%clk 0:01:25.3]} 36. Rxe4
{[%clk 0:00:05.5]} 36... Qa2 {[%clk 0:01:24.4]} 37. Ra4 {[%clk 0:00:05.5]} 37...
Qxb1 {[%clk 0:01:20.6]} 38. Qxb1 {[%clk 0:00:05]} 38... Rc1+ {[%clk 0:01:19.5]}
39. Kg2 {[%clk 0:00:05.7]} 39... Rxb1 {[%clk 0:01:19.4]} 40. Nxb1 {[%clk
0:00:05.7]} 40... Be7 {[%clk 0:01:17.5]} 41. Kf3 {[%clk 0:00:05.4]} 41... Bf6
{[%clk 0:01:17.7]} 42. Ke2 {[%clk 0:00:05.1]} 42... Rc8 {[%clk 0:01:17.9]} 43.
Nd2 {[%clk 0:00:03.6]} 43... Rc2 {[%clk 0:01:17.3]} 44. Ra8+ {[%clk 0:00:03.8]}
44... Kh7 {[%clk 0:01:17.2]} 45. Ra7 {[%clk 0:00:04.7]} 45... b1=Q {[%clk
0:01:15.8]} 0-1

[Event "Late-Titled-Tuesday-Blitz-June-18-2024"]
[Site "Chess.com"]
[Date "2024.06.18"]
[Round "7"]
[White "Cuchulin"]
[Black "topce"]
[Result "0-1"]
[WhiteElo "2285"]
[BlackElo "2533"]
[TimeControl "180+1"]
[EndTime "15:18:47 PDT"]
[Termination "topce won by checkmate"]

1. d4 {[%clk 0:02:55.8]} 1... Nf6 {[%clk 0:02:58.9]} 2. Bf4 {[%clk 0:02:55.2]}
2... d6 {[%clk 0:02:56.7]} 3. Nc3 {[%clk 0:02:54.6]} 3... Nbd7 {[%clk
0:02:53.3]} 4. Nf3 {[%clk 0:02:47]} 4... h6 {[%clk 0:02:36.2]} 5. e4 {[%clk
0:02:43.1]} 5... g5 {[%clk 0:02:35.3]} 6. Be3 {[%clk 0:02:39.7]} 6... Bg7 {[%clk
0:02:29.2]} 7. e5 {[%clk 0:02:39.6]} 7... dxe5 {[%clk 0:02:25]} 8. dxe5 {[%clk
0:02:38.9]} 8... Ng4 {[%clk 0:02:24.2]} 9. e6 {[%clk 0:02:34.5]} 9... fxe6
{[%clk 0:01:57.8]} 10. Nxg5 {[%clk 0:02:33.5]} 10... Bxc3+ {[%clk 0:01:31.5]}
11. bxc3 {[%clk 0:02:29.2]} 11... Nde5 {[%clk 0:01:29.2]} 12. Qxd8+ {[%clk
0:02:16.3]} 12... Kxd8 {[%clk 0:01:27.8]} 13. Ne4 {[%clk 0:01:39.9]} 13... Nxe3
{[%clk 0:01:25.2]} 14. fxe3 {[%clk 0:01:39.7]} 14... b6 {[%clk 0:01:19.4]} 15.
Rd1+ {[%clk 0:01:35.2]} 15... Ke8 {[%clk 0:01:18.1]} 16. Be2 {[%clk 0:01:29.1]}
16... Kf7 {[%clk 0:01:11.5]} 17. Bh5+ {[%clk 0:01:25]} 17... Kg7 {[%clk
0:01:11.5]} 18. O-O {[%clk 0:01:07.6]} 18... Ba6 {[%clk 0:01:07.7]} 19. Rf2
{[%clk 0:00:57.2]} 19... Rad8 {[%clk 0:01:02]} 20. Rfd2 {[%clk 0:00:56.7]} 20...
Rxd2 {[%clk 0:00:59.4]} 21. Rxd2 {[%clk 0:00:57.6]} 21... Rf8 {[%clk 0:00:58.8]}
22. Nf2 {[%clk 0:00:49.3]} 22... Bc4 {[%clk 0:00:51.5]} 23. a3 {[%clk
0:00:44.7]} 23... Bd5 {[%clk 0:00:49.9]} 24. e4 {[%clk 0:00:38]} 24... Bc6
{[%clk 0:00:40.8]} 25. Rd4 {[%clk 0:00:30.3]} 25... Bb5 {[%clk 0:00:30.6]} 26.
Nd3 {[%clk 0:00:29.2]} 26... c5 {[%clk 0:00:22.4]} 27. Nxe5 {[%clk 0:00:17.2]}
27... Rf1# {[%clk 0:00:21.6]} 0-1

[Event "Late-Titled-Tuesday-Blitz-June-18-2024"]
[Site "Chess.com"]
[Date "2024.06.18"]
[Round "7"]
[White "Rutricks"]
[Black "lukas_111111"]
[Result "1-0"]
[WhiteElo "2815"]
[BlackElo "2643"]
[TimeControl "180+1"]
[EndTime "15:18:48 PDT"]
[Termination "Rutricks won by resignation"]

1. c4 {[%clk 0:02:56.4]} 1... g6 {[%clk 0:02:59.5]} 2. Nc3 {[%clk 0:02:56.3]}
2... Bg7 {[%clk 0:02:59.7]} 3. d4 {[%clk 0:02:56.6]} 3... c5 {[%clk 0:02:59.9]}
4. d5 {[%clk 0:02:37.5]} 4... Bxc3+ {[%clk 0:03:00.3]} 5. bxc3 {[%clk
0:02:38.1]} 5... d6 {[%clk 0:03:01]} 6. e4 {[%clk 0:02:34]} 6... e5 {[%clk
0:03:01.1]} 7. f4 {[%clk 0:02:33.6]} 7... Nd7 {[%clk 0:02:59]} 8. Nf3 {[%clk
0:02:31.2]} 8... Qe7 {[%clk 0:02:56.8]} 9. Be2 {[%clk 0:02:22.3]} 9... Ngf6
{[%clk 0:02:56.1]} 10. O-O {[%clk 0:02:19.4]} 10... Nxe4 {[%clk 0:02:55.3]} 11.
Bd3 {[%clk 0:02:13.7]} 11... f5 {[%clk 0:02:13.4]} 12. Bxe4 {[%clk 0:02:11.4]}
12... fxe4 {[%clk 0:02:13]} 13. Ng5 {[%clk 0:02:12.3]} 13... Nb6 {[%clk
0:02:01.7]} 14. fxe5 {[%clk 0:02:09.8]} 14... Bf5 {[%clk 0:02:01.4]} 15. e6
{[%clk 0:01:55.4]} 15... O-O-O {[%clk 0:01:58.8]} 16. Nf7 {[%clk 0:01:48]} 16...
Nxc4 {[%clk 0:01:55.9]} 17. Nxd8 {[%clk 0:01:48.1]} 17... Rxd8 {[%clk
0:01:48.1]} 18. g4 {[%clk 0:01:48.4]} 18... Ne5 {[%clk 0:01:45.3]} 19. gxf5
{[%clk 0:01:41]} 19... gxf5 {[%clk 0:01:45.3]} 20. Rxf5 {[%clk 0:01:35]} 20...
Rg8+ {[%clk 0:01:45.1]} 21. Kh1 {[%clk 0:01:34.7]} 21... Ng4 {[%clk 0:01:26.4]}
22. Qf1 {[%clk 0:00:51.6]} 22... e3 {[%clk 0:00:49.3]} 23. Rb1 {[%clk
0:00:34.9]} 23... b6 {[%clk 0:00:26.7]} 24. Rb2 {[%clk 0:00:34.9]} 24... Kb8
{[%clk 0:00:19.1]} 25. Rg2 {[%clk 0:00:34.6]} 25... Qh4 {[%clk 0:00:12]} 26.
Rf8+ {[%clk 0:00:34.7]} 26... Rxf8 {[%clk 0:00:10.5]} 27. Qxf8+ {[%clk
0:00:35.6]} 27... Kb7 {[%clk 0:00:10.8]} 28. Qg7+ {[%clk 0:00:36.3]} 28... Ka6
{[%clk 0:00:10.9]} 29. Qxg4 {[%clk 0:00:36.3]} 29... Qe1+ {[%clk 0:00:11]} 30.
Rg1 {[%clk 0:00:37]} 30... Qf2 {[%clk 0:00:10.1]} 31. Qg2 {[%clk 0:00:37]} 31...
Qf5 {[%clk 0:00:08.4]} 32. Qf1+ {[%clk 0:00:37.3]} 32... Qxf1 {[%clk 0:00:07.9]}
33. Rxf1 {[%clk 0:00:38.2]} 1-0

[Event "Late-Titled-Tuesday-Blitz-June-18-2024"]
[Site "Chess.com"]
[Date "2024.06.18"]
[Round "7"]
[White "aranibos"]
[Black "Finejupiter"]
[Result "0-1"]
[WhiteElo "2256"]
[BlackElo "2182"]
[TimeControl "180+1"]
[EndTime "15:18:49 PDT"]
[Termination "Finejupiter won by resignation"]

1. Nf3 {[%clk 0:03:00.9]} 1... Nf6 {[%clk 0:02:55.2]} 2. d4 {[%clk 0:03:01.1]}
2... g6 {[%clk 0:02:55]} 3. Bg5 {[%clk 0:03:01.5]} 3... Bg7 {[%clk 0:02:55.3]}
4. Nbd2 {[%clk 0:03:01.8]} 4... d5 {[%clk 0:02:54.7]} 5. e3 {[%clk 0:03:02]}
5... O-O {[%clk 0:02:54.5]} 6. Bd3 {[%clk 0:03:02.2]} 6... h6 {[%clk 0:02:54.5]}
7. Bh4 {[%clk 0:03:00]} 7... Nbd7 {[%clk 0:02:55.1]} 8. c3 {[%clk 0:02:57.3]}
8... c5 {[%clk 0:02:47.1]} 9. Ne5 {[%clk 0:02:53.5]} 9... cxd4 {[%clk
0:02:31.3]} 10. exd4 {[%clk 0:02:50.1]} 10... Nxe5 {[%clk 0:02:31.3]} 11. dxe5
{[%clk 0:02:49.7]} 11... Ng4 {[%clk 0:02:30.5]} 12. f4 {[%clk 0:02:37.9]} 12...
Qb6 {[%clk 0:02:30.6]} 13. Qe2 {[%clk 0:02:36.8]} 13... Qxb2 {[%clk 0:02:20.8]}
14. O-O {[%clk 0:02:34.6]} 14... Qxc3 {[%clk 0:02:15]} 15. h3 {[%clk 0:02:32.2]}
15... Qc5+ {[%clk 0:01:55.5]} 16. Kh1 {[%clk 0:02:28]} 16... Ne3 {[%clk
0:01:55.6]} 17. Rf3 {[%clk 0:01:43.3]} 17... Nf5 {[%clk 0:01:51.6]} 18. Bf2
{[%clk 0:01:38.1]} 18... Qc7 {[%clk 0:01:39.7]} 19. g4 {[%clk 0:01:34.5]} 19...
Qc3 {[%clk 0:01:31.2]} 20. Rd1 {[%clk 0:01:25.3]} 20... Nd4 {[%clk 0:01:31]} 21.
Bxd4 {[%clk 0:01:25.1]} 21... Qxd4 {[%clk 0:01:31.9]} 22. Nb3 {[%clk 0:01:25.4]}
22... Qb6 {[%clk 0:01:31.2]} 23. f5 {[%clk 0:01:25.7]} 23... a5 {[%clk
0:01:11.2]} 24. fxg6 {[%clk 0:01:14]} 24... fxg6 {[%clk 0:01:12.1]} 25. Rxf8+
{[%clk 0:01:08.5]} 25... Bxf8 {[%clk 0:01:13]} 26. Rf1 {[%clk 0:01:01.4]} 26...
a4 {[%clk 0:01:03]} 27. Qf3 {[%clk 0:00:58.8]} 27... Be6 {[%clk 0:01:01]} 28.
Nc1 {[%clk 0:00:52.1]} 28... Bg7 {[%clk 0:00:28.1]} 29. Bxg6 {[%clk 0:00:47.4]}
29... Rf8 {[%clk 0:00:26.3]} 30. Qe2 {[%clk 0:00:46.8]} 30... Rxf1+ {[%clk
0:00:21.9]} 31. Qxf1 {[%clk 0:00:47.1]} 31... d4 {[%clk 0:00:20.6]} 32. Nd3
{[%clk 0:00:46.6]} 32... Bd5+ {[%clk 0:00:20.3]} 33. Kh2 {[%clk 0:00:45.7]}
33... Qxg6 {[%clk 0:00:20.2]} 34. Nf4 {[%clk 0:00:43.1]} 34... Bxe5 {[%clk
0:00:20]} 0-1

[Event "Late-Titled-Tuesday-Blitz-June-18-2024"]
[Site "Chess.com"]
[Date "2024.06.18"]
[Round "7"]
[White "Andrey-Ivanov2011"]
[Black "nitpicker"]
[Result "0-1"]
[WhiteElo "2131"]
[BlackElo "2344"]
[TimeControl "180+1"]
[EndTime "15:18:52 PDT"]
[Termination "nitpicker won by resignation"]

1. e4 {[%clk 0:02:58]} 1... c5 {[%clk 0:02:59.4]} 2. Nf3 {[%clk 0:02:57.9]} 2...
Nc6 {[%clk 0:02:59.1]} 3. d4 {[%clk 0:02:58]} 3... cxd4 {[%clk 0:02:58.5]} 4.
Nxd4 {[%clk 0:02:58.9]} 4... Nf6 {[%clk 0:02:58]} 5. Nc3 {[%clk 0:02:58.9]} 5...
d6 {[%clk 0:02:58.3]} 6. Be3 {[%clk 0:02:55.5]} 6... e6 {[%clk 0:02:50.2]} 7. f3
{[%clk 0:02:54.5]} 7... h5 {[%clk 0:02:48.3]} 8. Qd2 {[%clk 0:02:54.1]} 8... a6
{[%clk 0:02:44.5]} 9. O-O-O {[%clk 0:02:53.4]} 9... Be7 {[%clk 0:02:44.1]} 10.
h4 {[%clk 0:02:51.8]} 10... Qc7 {[%clk 0:02:41]} 11. Be2 {[%clk 0:02:52.3]}
11... Ne5 {[%clk 0:02:36.8]} 12. Rdg1 {[%clk 0:02:46]} 12... b5 {[%clk
0:02:32.4]} 13. g4 {[%clk 0:02:44.5]} 13... hxg4 {[%clk 0:02:32.5]} 14. fxg4
{[%clk 0:02:45.4]} 14... b4 {[%clk 0:02:32.6]} 15. Na4 {[%clk 0:02:42]} 15...
Nxe4 {[%clk 0:02:09.1]} 16. Qxb4 {[%clk 0:02:35.6]} 16... Rb8 {[%clk 0:01:59.5]}
17. Qe1 {[%clk 0:02:26.6]} 17... Bd7 {[%clk 0:01:48.8]} 18. Nc3 {[%clk
0:02:20.7]} 18... Nxc3 {[%clk 0:01:47.5]} 19. Qxc3 {[%clk 0:02:21.6]} 19... Qxc3
{[%clk 0:01:46.1]} 20. bxc3 {[%clk 0:02:22.5]} 20... Rxh4 {[%clk 0:01:24.8]} 21.
Rxh4 {[%clk 0:02:20.7]} 21... Bxh4 {[%clk 0:01:24.8]} 22. Bxa6 {[%clk
0:02:15.8]} 22... Ra8 {[%clk 0:01:12.7]} 23. Nb5 {[%clk 0:02:14]} 23... Ke7
{[%clk 0:01:04.9]} 24. Nc7 {[%clk 0:02:07.3]} 24... Rh8 {[%clk 0:00:47.4]} 25.
Be2 {[%clk 0:02:02.1]} 25... g5 {[%clk 0:00:38.8]} 26. Kd2 {[%clk 0:01:52.1]}
26... Rc8 {[%clk 0:00:38.1]} 27. Na6 {[%clk 0:01:43.1]} 27... Nc4+ {[%clk
0:00:34]} 28. Bxc4 {[%clk 0:01:42.5]} 28... Rxc4 {[%clk 0:00:34.6]} 29. Nb4
{[%clk 0:01:33]} 29... e5 {[%clk 0:00:24.6]} 30. Nd5+ {[%clk 0:01:31.4]} 30...
Kf8 {[%clk 0:00:19.8]} 31. Nf6 {[%clk 0:01:28.4]} 31... Be6 {[%clk 0:00:19.9]}
32. Nh7+ {[%clk 0:01:24.9]} 32... Kg7 {[%clk 0:00:18.8]} 33. Nxg5 {[%clk
0:01:25.1]} 33... Bxg5 {[%clk 0:00:14.7]} 34. Bxg5 {[%clk 0:01:26]} 34... Rxg4
{[%clk 0:00:13.3]} 35. Rxg4 {[%clk 0:01:24.1]} 35... Bxg4 {[%clk 0:00:13.3]} 36.
a4 {[%clk 0:01:24.6]} 36... Bd7 {[%clk 0:00:12.6]} 37. a5 {[%clk 0:01:24.4]}
37... Bb5 {[%clk 0:00:13.2]} 38. Ke3 {[%clk 0:01:24]} 38... f5 {[%clk
0:00:13.6]} 39. Be7 {[%clk 0:01:22.7]} 39... d5 {[%clk 0:00:11.6]} 40. Bd6
{[%clk 0:01:22.6]} 40... Kf6 {[%clk 0:00:11.4]} 41. Bc7 {[%clk 0:01:20.7]} 41...
f4+ {[%clk 0:00:10.9]} 42. Kf3 {[%clk 0:01:20.3]} 42... Kf5 {[%clk 0:00:10.9]}
43. Bb8 {[%clk 0:01:18.2]} 43... e4+ {[%clk 0:00:10.7]} 44. Kf2 {[%clk
0:01:17.9]} 44... Kg4 {[%clk 0:00:10.5]} 45. Be5 {[%clk 0:01:17.3]} 45... e3+
{[%clk 0:00:09.8]} 46. Ke1 {[%clk 0:01:16.9]} 46... f3 {[%clk 0:00:09.9]} 47. c4
{[%clk 0:01:15.4]} 47... Bxc4 {[%clk 0:00:09.5]} 48. Bg3 {[%clk 0:01:09.7]}
48... Kxg3 {[%clk 0:00:08.1]} 49. c3 {[%clk 0:01:07.8]} 49... f2+ {[%clk
0:00:08.1]} 0-1